{"text_format":"1","workbook":"xlsx","n_sheets":3,"sheets":["DASHBOARD","Pivot","DATA"],"not_rendered":{"charts":8,"images":27,"macros":1,"external_links":0,"defined_names":10,"comments":0,"pivot_tables":8},"unopened":[],"bounds":{"document_bytes":16777216,"sheet_cells":100000,"rows_first":2000,"rows_last":500,"rows_between":2000,"halvings":0,"cell_chars":16384,"cell_head_chars":4096},"cells_cut":0,"cells_raw":0,"read":"whole","date_system":"1900"}

{"sheet":"DASHBOARD","index":0,"n_rows":34,"n_cols":51,"rows_kept":34,"cut":false,"hidden":false,"merged":[]}
[]
[]
[]
[]
[null,null,null,null,null,null,null,null," "]
[]
[]
[]
[]
[]
[null,null,null,null,null,null,null,null,null,null,null," "]
[]
[]
[]
[]
[]
[]
[]
[]
[]
[]
[]
[]
[]
[]
[]
[]
[]
[]
[]
[]
[]
[]
[null,null,null,null,null,null,null,null,null,null,null,null,null,null,null,null,null,null,null,null,null,null,null,null,null,null,null,null,null,null,null,null,null,null,null,null,null,null,null,null,null,null,null,null,null,null,null,null,null,null,"        "]

{"sheet":"Pivot","index":1,"n_rows":21,"n_cols":36,"rows_kept":21,"cut":false,"hidden":false,"merged":[]}
[null,null,null,null,null,null,null,null,null,null,"Emp Status","(All)",null,null,"Emp Status","(All)",null,null,null,null,null,null,"Emp Status","(All)",null,null,"Emp Status","(All)",null,null,"Emp Status","(All)",null,null,"Emp Status","(All)"]
[]
[null,null,null,null,"Count of Name","Column Labels",null,null,null,null,"Row Labels","Count of Name",null,null,"Row Labels","Count of Name","Headcount %",null,"Row Labels","Headcount %",null,null,"Row Labels","Count of Name","Headcount %",null,"Row Labels","Count of Name","Headcount %",null,"Row Labels","Count of Name","Headcount %",null,"Row Labels","Count of Name"]
[null,null,null,null,"Row Labels","Attrition","On-Board","Transfer","Grand Total",null,"Female",64,null,null,"Contract",22,0.12865497076023391,null,"Accounting",0.10526315789473684,null,null,"Alejandra Mack",19,0.1111111111111111,null,"Contract",23,0.13450292397660818,null,"5+ years",42,0.24561403508771928,null,"Ryan Simmons",58]
[null,null,null,null,2020,20,23,null,43,null,"Male",107,null,null,"Management",26,0.15204678362573099,null,"Finance",8.1871345029239762E-2,null,null,"Darryl Leon",11,6.4327485380116955E-2,null,"Permanent",148,0.86549707602339176,null,"4+ years",26,0.15204678362573099,null,"Janelle Wiley",41]
[null,null,null,null,2021,12,12,1,25,null,"Grand Total",171,null,null,"Professional",58,0.33918128654970758,null,"HR",0.21637426900584794,null,null,"Geneva Hardy",7,4.0935672514619881E-2,null,"Grand Total",171,1,null,"3+ years",33,0.19298245614035087,null,"Roberta Moyer",24]
[null,null,null,null,2022,10,19,4,33,null,null,null,null,null,"Trainees",65,0.38011695906432746,null,"Legal",7.6023391812865493E-2,null,null,"Janelle Wiley",41,0.23976608187134502,null,null,null,null,null,"2+ years",34,0.19883040935672514,null,"Alejandra Mack",19]
[null,null,null,null,2023,4,30,1,35,null,null,null,null,null,"Grand Total",171,1,null,"Marketing",0.1111111111111111,null,null,"Jefferson Perry",11,6.4327485380116955E-2,null,null,null,null,null,"1+ years",26,0.15204678362573099,null,"Darryl Leon",11]
[null,null,null,null,2024,null,25,null,25,null,null,null,null," ",null,null,null,null,"Operations",0.27485380116959063,null,null,"Roberta Moyer",24,0.14035087719298245,null,null,null,null,null,"<1 year",10,5.8479532163742687E-2,null,"Jefferson Perry",11]
[null,null,null,null,2025,1,9,null,10,null,null,null,null,null,null,null,null,null,"Sales",0.13450292397660818,null,null,"Ryan Simmons",58,0.33918128654970758,null,null,null,null,null,"Grand Total",171,1,null,"Geneva Hardy",7]
[null,null,null,null,"Grand Total",47,118,6,171,null,null,null,null,null,null,null,null,null,"Grand Total",1,null,null,"Grand Total",171,1,null,null,null,null,null,null,null,null,null,"Grand Total",171]
[null,null,null,null,null,null,null,null,null,null,null,null,null,null,null,null,null,"  ",null,null,null,null,null,null,null,null,"Emplyoment Status","Headcount","Headcount %",null,null,null,null,null,"Reporting Manage Name ","Headcount"]
[null,null,null,null,null,null,null,null,null,null,null,null,null,null,null,null,null,null,null,null,null,null,null,null,null,null,{"$f":"AA4","v":"Contract"},{"$f":"GETPIVOTDATA(\"Count of Name\",$AA$3,\"Emp Type\",AA13)","v":23},{"$f":"AB13/$AB$15","v":0.13450292397660818},null,"Stability Year","Headcount","Headcount %",null,{"$f":"AI4","v":"Ryan Simmons"},{"$f":"GETPIVOTDATA(\"Name\",$AI$3,\"Reporting Manager\",AI13)","v":58}]
["KPI","Value",null,null,"Year","Attrition","On-Board","Transfer","Headcount Growth",null,"Gender","Headcount","Headcount %",null,"Row Labels","Count of Name","Headcount %",null,null,null,null,null,null,null,null,null,{"$f":"AA5","v":"Permanent"},{"$f":"GETPIVOTDATA(\"Count of Name\",$AA$3,\"Emp Type\",AA14)","v":148},{"$f":"AB14/$AB$15","v":0.86549707602339176},null,{"$f":"AE4","v":"5+ years"},{"$f":"GETPIVOTDATA(\"Count of Name\",$AE$3,\"Stability\",AE14)","v":42},{"$f":"AF14/$AF$20","v":0.24561403508771928},null,{"$f":"AI5","v":"Janelle Wiley"},{"$f":"GETPIVOTDATA(\"Name\",$AI$3,\"Reporting Manager\",AI14)","v":41}]
["Overall Headcount ",{"$f":"GETPIVOTDATA(\"Name\",$E$3)","v":171},null,null,2020,{"$f":"IFERROR(GETPIVOTDATA(\"Name\",$E$3,\"Emp Status\",\"Attrition\",\"Year\",E15),0)","v":20},{"$f":"IFERROR(GETPIVOTDATA(\"Name\",$E$3,\"Emp Status\",\"On-Board\",\"Year\",E15),0)","v":23},{"$f":"IFERROR(GETPIVOTDATA(\"Name\",$E$3,\"Emp Status\",\"Transfer\",\"Year\",E15),0)","v":0},{"$f":"G15","v":23},null,"Female",{"$f":"GETPIVOTDATA(\"Name\",$K$3,\"Category\",K15)","v":64},{"$f":"L15/L17","v":0.3742690058479532},null,"Contract",{"$f":"GETPIVOTDATA(\"Count of Name\",$O$3,\"Grade\",O15)","v":22},{"$f":"P15/$P$19","v":0.12865497076023391},null,null,null,null,null,null,null,null,null,"Total",{"$f":"SUM(AB13:AB14)","v":171},1,null,{"$f":"AE5","v":"4+ years"},{"$f":"GETPIVOTDATA(\"Count of Name\",$AE$3,\"Stability\",AE15)","v":26},{"$f":"AF15/$AF$20","v":0.15204678362573099},null,"Roberta Moyer",24]
["Active Headcount",{"$f":"G21","v":118},null,null,2021,12,12,1,{"$f":"I15+G16","v":35},null,"Male",{"$f":"GETPIVOTDATA(\"Name\",$K$3,\"Category\",K16)","v":107},{"$f":"L16/L17","v":0.6257309941520468},null,"Management",{"$f":"GETPIVOTDATA(\"Count of Name\",$O$3,\"Grade\",O16)","v":26},{"$f":"P16/$P$19","v":0.15204678362573099},null,null,null,null,null,null,null,null,null,null,null,null,null,"3+ years",33,0.19298245614035087,null,"Alejandra Mack",19]
["Attrition",{"$f":"F21","v":47},null,null,2022,10,19,4,{"$f":"I16+G17","v":54},null,"Total",{"$f":"SUM(L15:L16)","v":171},{"$f":"SUM(M15:M16)","v":1},null,"Professional",{"$f":"GETPIVOTDATA(\"Count of Name\",$O$3,\"Grade\",O17)","v":58},{"$f":"P17/$P$19","v":0.33918128654970758},null,null,null,null,null,null,null,null,null,null,null,null,null,"2+ years",34,0.19883040935672514,null,"Darryl Leon",11]
["Atrrition %",{"$f":"B17/B15","v":0.27485380116959063},null,null,2023,4,30,1,{"$f":"I17+G18","v":84},null,null,null,null,null,"Trainees",{"$f":"GETPIVOTDATA(\"Count of Name\",$O$3,\"Grade\",O18)","v":65},{"$f":"P18/$P$19","v":0.38011695906432746},null,null,null,null,null,null,null,null,null,null,null,null,null,"1+ years",26,0.15204678362573099,null,"Jefferson Perry",11]
["Tranfers",{"$f":"H21","v":6},null,null,2024,0,25,0,{"$f":"I18+G19","v":109},null,null,null,null,null,"Total",{"$f":"SUM(P15:P18)","v":171},{"$f":"P19/$P$19","v":1},null,null,null,null,null,null,null,null,null,null,null,null," ","<1 year",10,5.8479532163742687E-2,null,{"$f":"AI10","v":"Geneva Hardy"},7]
[null,null,null,null,2025,1,9,0,{"$f":"I19+G20","v":118},null,null,null,null,null,null,null,null,null,null,null,null,null,null,null,null,null,null,null,null,null,"Grand Total",{"$f":"SUM(AF14:AF19)","v":171},{"$f":"AF20/$AF$20","v":1}]
[null,null,null,null,"Total",{"$f":"SUM(F15:F20)","v":47},{"$f":"SUM(G15:G20)","v":118},{"$f":"SUM(H15:H20)","v":6},{"$f":"I20","v":118}]

{"sheet":"DATA","index":2,"n_rows":172,"n_cols":16,"rows_kept":172,"cut":false,"hidden":false,"merged":[]}
["Emp Status","Movement","Emp Id","Name","Date of Joining","Data of Relieving","Reporting Manager","Emp Type","Category","Date of Birth","Marital status","Grade","Department","Total Experience","Year","Stability"]
["On-Board","IJP","CT18807","Adrian Odonnell","2020-04-29",null,"Roberta Moyer","Contract","Male","2021-07-13","Single","Contract","Operations",0,{"$f":"YEAR(Table2[[#This Row],[Date of Joining]])","v":2020},{"$f":"IF(DATEDIF(E2,TODAY(),\"Y\")>=5,\"5+ years\",\nIF(DATEDIF(E2,TODAY(),\"Y\")>=4,\"4+ years\",\nIF(DATEDIF(E2,TODAY(),\"Y\")>=3,\"3+ years\",\nIF(DATEDIF(E2,TODAY(),\"Y\")>=2,\"2+ years\",\nIF(DATEDIF(E2,TODAY(),\"Y\")>=1,\"1+ years\",\"<1 year\")))))","v":"5+ years"}]
["Attrition",null,"CT12674","Marina Velazquez","2020-09-01","2020-12-18","Roberta Moyer","Contract","Male","2021-10-03","Married","Trainees","Accounting",6.5,{"$f":"YEAR(Table2[[#This Row],[Date of Joining]])","v":2020},"5+ years"]
["On-Board",null,"CT11735","Regina Schaefer","2021-01-01",null,"Roberta Moyer","Contract","Male","2021-02-09","Single","Contract","Operations",4.8,{"$f":"YEAR(Table2[[#This Row],[Date of Joining]])","v":2021},"4+ years"]
["On-Board",null,"CT10131","Donna Sparks","2021-02-09",null,"Roberta Moyer","Contract","Male","2021-03-14","Single","Contract","Legal",14,{"$f":"YEAR(Table2[[#This Row],[Date of Joining]])","v":2021},"4+ years"]
["Attrition",null,"CT16953","Sal Glass","2021-09-30","2022-09-30","Ryan Simmons","Contract","Female","2021-04-11","Single","Contract","Marketing",0,{"$f":"YEAR(Table2[[#This Row],[Date of Joining]])","v":2021},"4+ years"]
["Attrition",null,"CT11213","Malik Schneider","2022-04-04","2022-07-16","Darryl Leon","Contract","Male","2021-08-23","Single","Contract","Finance",2,{"$f":"YEAR(Table2[[#This Row],[Date of Joining]])","v":2022},"3+ years"]
["Attrition",null,"CT17933","Fanny Hampton","2022-06-03","2023-01-25","Ryan Simmons","Contract","Male","2021-01-30","Single","Contract","Marketing",2.8,{"$f":"YEAR(Table2[[#This Row],[Date of Joining]])","v":2022},"3+ years"]
["Attrition",null,"CT17253","Edison York","2022-06-09","2023-08-11","Ryan Simmons","Contract","Male","2021-10-28","Single","Contract","HR",0,{"$f":"YEAR(Table2[[#This Row],[Date of Joining]])","v":2022},"3+ years"]
["Attrition",null,"CT14693","Geraldo Pugh","2022-07-07","2023-08-30","Geneva Hardy","Contract","Male","2021-12-26","Single","Contract","HR",3,{"$f":"YEAR(Table2[[#This Row],[Date of Joining]])","v":2022},"3+ years"]
["Attrition",null,"CT11465","Ellis Best","2022-08-04","2023-05-13","Ryan Simmons","Contract","Male","2021-04-07","Single","Contract","Legal",5.9,{"$f":"YEAR(Table2[[#This Row],[Date of Joining]])","v":2022},"3+ years"]
["On-Board",null,"CT12948","Olen Walter","2022-09-01",null,"Janelle Wiley","Contract","Male","2021-10-18","Married","Contract","Finance",10,{"$f":"YEAR(Table2[[#This Row],[Date of Joining]])","v":2022},"3+ years"]
["Attrition",null,"CT11145","Mckinley Baird","2022-09-08","2023-12-30","Janelle Wiley","Contract","Female","2021-04-26","Single","Contract","Marketing",1,{"$f":"YEAR(Table2[[#This Row],[Date of Joining]])","v":2022},"3+ years"]
["On-Board",null,"CT18269","Maura Huynh","2022-11-08",null,"Janelle Wiley","Contract","Male","2021-10-27","Married","Contract","Sales",10,{"$f":"YEAR(Table2[[#This Row],[Date of Joining]])","v":2022},"3+ years"]
["Attrition",null,"CT13931","Buster Joyce","2023-01-21","2023-11-21","Alejandra Mack","Contract","Male","2021-09-06","Single","Contract","Marketing",0,{"$f":"YEAR(Table2[[#This Row],[Date of Joining]])","v":2023},"2+ years"]
["Attrition",null,"CT15252","Rosanna Bauer","2023-06-06","2024-05-03","Alejandra Mack","Contract","Female","2022-02-28","Single","Contract","HR",0.1,{"$f":"YEAR(Table2[[#This Row],[Date of Joining]])","v":2023},"2+ years"]
["On-Board",null,"CT13664","Marion Harmon","2023-10-19",null,"Alejandra Mack","Contract","Female","2022-09-26","Single","Contract","HR",0,{"$f":"YEAR(Table2[[#This Row],[Date of Joining]])","v":2023},"2+ years"]
["On-Board",null,"CT10043","Shawn Ross","2023-12-14",null,"Alejandra Mack","Contract","Female","2022-11-12","Single","Contract","Legal",4,{"$f":"YEAR(Table2[[#This Row],[Date of Joining]])","v":2023},"2+ years"]
["On-Board",null,"CT16547","Houston Wilson","2024-02-06",null,"Roberta Moyer","Contract","Male","2021-12-28","Single","Contract","HR",0,{"$f":"YEAR(Table2[[#This Row],[Date of Joining]])","v":2024},"1+ years"]
["On-Board",null,"CT11188","Maricela Gates","2024-03-27",null,"Alejandra Mack","Contract","Male","2003-03-06","Married","Contract","Marketing",10,{"$f":"YEAR(Table2[[#This Row],[Date of Joining]])","v":2024},"1+ years"]
["On-Board",null,"CT14537","Fletcher Tate","2024-06-01",null,"Alejandra Mack","Contract","Female","2022-12-03","Married","Contract","Legal",4,{"$f":"YEAR(Table2[[#This Row],[Date of Joining]])","v":2024},"1+ years"]
["On-Board",null,"CT14690","Emily Davis","2025-01-05",null,"Jefferson Perry","Contract","Female","2021-05-22","Married","Contract","Finance",4.8,{"$f":"YEAR(Table2[[#This Row],[Date of Joining]])","v":2025},"<1 year"]
["On-Board",null,"CT16195","Penelope Jordan","2025-01-14",null,"Jefferson Perry","Contract","Male","2021-02-09","Single","Contract","Operations",9,{"$f":"YEAR(Table2[[#This Row],[Date of Joining]])","v":2025},"<1 year"]
["On-Board",null,"CT16735","Alfredo Mcclain","2025-04-28",null,"Ryan Simmons","Contract","Male","2021-12-06","Married","Contract","Marketing",8,{"$f":"YEAR(Table2[[#This Row],[Date of Joining]])","v":2025},"<1 year"]
["On-Board","IJP",107224,"Preston Case","2020-02-06",null,"Roberta Moyer","Permanent","Male","2021-08-25","Single","Trainees","Operations",13,{"$f":"YEAR(Table2[[#This Row],[Date of Joining]])","v":2020},"5+ years"]
["Attrition","IJP",148467,"Branden Kaiser","2020-02-08","2024-06-30","Jefferson Perry","Permanent","Female","2021-10-25","Single","Trainees","Accounting",5,{"$f":"YEAR(Table2[[#This Row],[Date of Joining]])","v":2020},"5+ years"]
["Attrition",null,114416,"Julia Bell","2020-02-13","2024-01-09","Alejandra Mack","Permanent","Male","2021-11-24","Married","Management","Finance",8,{"$f":"YEAR(Table2[[#This Row],[Date of Joining]])","v":2020},"5+ years"]
["On-Board",null,189095,"Sammy Hancock","2020-02-26",null,"Alejandra Mack","Permanent","Male","2021-11-04","Single","Management","Operations",17,{"$f":"YEAR(Table2[[#This Row],[Date of Joining]])","v":2020},"5+ years"]
["Attrition",null,123874,"Mabel Cuevas","2020-03-11","2021-12-30","Alejandra Mack","Permanent","Male","2021-12-28","Married","Trainees","Accounting",14,{"$f":"YEAR(Table2[[#This Row],[Date of Joining]])","v":2020},"5+ years"]
["On-Board","IJP",147637,"Janelle Wiley","2020-03-26",null,"Roberta Moyer","Permanent","Male","2021-04-28","Single","Trainees","Finance",14,{"$f":"YEAR(Table2[[#This Row],[Date of Joining]])","v":2020},"5+ years"]
["On-Board","IJP",183900,"Norris Madden","2020-04-29",null,"Alejandra Mack","Permanent","Male","2021-04-23","Single","Management","Accounting",13,{"$f":"YEAR(Table2[[#This Row],[Date of Joining]])","v":2020},"5+ years"]
["On-Board",null,110700,"Vincenzo Mcdowell","2020-05-20",null,"Alejandra Mack","Permanent","Male","2021-04-21","Single","Management","Finance",13,{"$f":"YEAR(Table2[[#This Row],[Date of Joining]])","v":2020},"5+ years"]
["On-Board","IJP",188035,"Chris Mcbride","2020-06-12",null,"Janelle Wiley","Permanent","Male","2022-08-08","Single","Trainees","Operations",7,{"$f":"YEAR(Table2[[#This Row],[Date of Joining]])","v":2020},"5+ years"]
["On-Board",null,131049,"Wesley Berger","2020-06-18",null,"Alejandra Mack","Permanent","Male","2021-12-31","Single","Management","Operations",13,{"$f":"YEAR(Table2[[#This Row],[Date of Joining]])","v":2020},"5+ years"]
["Attrition",null,180582,"Bart Sims","2020-06-26","2021-06-30","Janelle Wiley","Permanent","Female","2021-05-27","Single","Professional","Accounting",0,{"$f":"YEAR(Table2[[#This Row],[Date of Joining]])","v":2020},"5+ years"]
["On-Board",null,126718,"Tricia Arroyo","2020-07-08",null,"Alejandra Mack","Permanent","Male","2021-10-03","Single","Trainees","Accounting",6.5,{"$f":"YEAR(Table2[[#This Row],[Date of Joining]])","v":2020},"5+ years"]
["On-Board",null,192425,"Kennith Barber","2020-07-24",null,"Roberta Moyer","Permanent","Male","2021-05-22","Single","Trainees","Finance",8,{"$f":"YEAR(Table2[[#This Row],[Date of Joining]])","v":2020},"5+ years"]
["On-Board",null,174008,"Alonzo Harrison","2020-07-31",null,"Janelle Wiley","Permanent","Female","2021-12-10","Single","Trainees","Accounting",12,{"$f":"YEAR(Table2[[#This Row],[Date of Joining]])","v":2020},"5+ years"]
["Attrition",null,129735,"Ryan Simmons","2020-08-14","2022-06-29","Alejandra Mack","Permanent","Male","2021-01-15","Single","Trainees","Operations",5,{"$f":"YEAR(Table2[[#This Row],[Date of Joining]])","v":2020},"5+ years"]
["Attrition",null,117328,"Kirk Wagner","2020-08-26","2022-04-30","Alejandra Mack","Permanent","Male","2021-02-09","Married","Trainees","Operations",4.8,{"$f":"YEAR(Table2[[#This Row],[Date of Joining]])","v":2020},"5+ years"]
["On-Board",null,110646,"Zackary Tucker","2020-09-01",null,"Geneva Hardy","Permanent","Male","2021-01-20","Married","Trainees","Finance",9,{"$f":"YEAR(Table2[[#This Row],[Date of Joining]])","v":2020},"5+ years"]
["On-Board",null,114446,"Roberto Ford","2020-09-01",null,"Jefferson Perry","Permanent","Male","2021-11-24","Married","Management","Finance",8,{"$f":"YEAR(Table2[[#This Row],[Date of Joining]])","v":2020},"5+ years"]
["On-Board",null,189125,"Sadie Mcmahon","2020-09-01",null,"Ryan Simmons","Permanent","Male","2021-11-04","Married","Management","Operations",17,{"$f":"YEAR(Table2[[#This Row],[Date of Joining]])","v":2020},"5+ years"]
["On-Board","IJP",183930,"Darla Parks","2020-09-01",null,"Ryan Simmons","Permanent","Male","2021-04-23","Married","Management","Accounting",13,{"$f":"YEAR(Table2[[#This Row],[Date of Joining]])","v":2020},"5+ years"]
["On-Board",null,110730,"Darryl Leon","2020-09-01",null,"Darryl Leon","Permanent","Male","2021-04-21","Single","Management","Finance",13,{"$f":"YEAR(Table2[[#This Row],[Date of Joining]])","v":2020},"5+ years"]
["On-Board",null,131079,"Letitia Church","2020-09-01",null,"Roberta Moyer","Permanent","Male","2021-12-31","Single","Management","Operations",13,{"$f":"YEAR(Table2[[#This Row],[Date of Joining]])","v":2020},"5+ years"]
["On-Board",null,180612,"Collin Paul","2020-09-01",null,"Janelle Wiley","Permanent","Female","2021-05-27","Single","Professional","Accounting",0,{"$f":"YEAR(Table2[[#This Row],[Date of Joining]])","v":2020},"5+ years"]
["Attrition",null,154702,"Frances Leblanc","2020-09-09","2024-01-20","Alejandra Mack","Permanent","Female","2021-11-07","Married","Professional","Operations",0,{"$f":"YEAR(Table2[[#This Row],[Date of Joining]])","v":2020},"5+ years"]
["On-Board",null,101286,"Alexis Conway","2020-09-09",null,"Alejandra Mack","Permanent","Male","2021-03-14","Single","Management","Legal",14,{"$f":"YEAR(Table2[[#This Row],[Date of Joining]])","v":2020},"5+ years"]
["Attrition",null,137383,"Roberta Moyer","2020-09-16","2021-03-03","Geneva Hardy","Permanent","Male","2021-01-24","Single","Management","Operations",9,{"$f":"YEAR(Table2[[#This Row],[Date of Joining]])","v":2020},"5+ years"]
["Attrition",null,185704,"Alejandra Mack","2020-09-16","2021-07-18","Janelle Wiley","Permanent","Male","2021-12-06","Single","Professional","HR",0,{"$f":"YEAR(Table2[[#This Row],[Date of Joining]])","v":2020},"5+ years"]
["Attrition",null,151727,"Chi Preston","2020-09-16","2023-06-29","Janelle Wiley","Permanent","Male","2021-02-03","Single","Professional","HR",0,{"$f":"YEAR(Table2[[#This Row],[Date of Joining]])","v":2020},"5+ years"]
["Attrition",null,135167,"Randolph Reilly","2020-09-16","2023-09-26","Janelle Wiley","Permanent","Male","2021-03-28","Single","Professional","HR",0,{"$f":"YEAR(Table2[[#This Row],[Date of Joining]])","v":2020},"5+ years"]
["Attrition",null,100971,"Howard Wiggins","2020-09-16","2023-12-23","Janelle Wiley","Permanent","Male","2021-09-08","Single","Professional","HR",0,{"$f":"YEAR(Table2[[#This Row],[Date of Joining]])","v":2020},"5+ years"]
["Attrition",null,145787,"Palmer Hart","2020-09-16","2024-01-27","Janelle Wiley","Permanent","Female","2021-10-14","Married","Professional","HR",0,{"$f":"YEAR(Table2[[#This Row],[Date of Joining]])","v":2020},"5+ years"]
["Attrition",null,170924,"Lesa Terrell","2020-09-16","2024-03-17","Jefferson Perry","Permanent","Male","2021-10-01","Single","Professional","HR",0,{"$f":"YEAR(Table2[[#This Row],[Date of Joining]])","v":2020},"5+ years"]
["Attrition",null,129573,"Celeste Moses","2020-09-16","2024-09-29","Ryan Simmons","Permanent","Female","2021-09-16","Single","Trainees","HR",0,{"$f":"YEAR(Table2[[#This Row],[Date of Joining]])","v":2020},"5+ years"]
["On-Board",null,115742,"Leanne Mosley","2020-09-16",null,"Ryan Simmons","Permanent","Female","2021-09-23","Single","Trainees","HR",0,{"$f":"YEAR(Table2[[#This Row],[Date of Joining]])","v":2020},"5+ years"]
["On-Board",null,126064,"Renaldo Navarro","2020-09-16",null,"Ryan Simmons","Permanent","Female","2021-05-30","Single","Trainees","HR",0,{"$f":"YEAR(Table2[[#This Row],[Date of Joining]])","v":2020},"5+ years"]
["On-Board",null,173140,"Sonia Ortiz","2020-09-16",null,"Jefferson Perry","Permanent","Male","2021-07-13","Single","Trainees","HR",0,{"$f":"YEAR(Table2[[#This Row],[Date of Joining]])","v":2020},"5+ years"]
["Attrition",null,181592,"Faith Lopez","2020-10-16","2024-02-03","Jefferson Perry","Permanent","Male","2021-01-24","Married","Management","HR",12,{"$f":"YEAR(Table2[[#This Row],[Date of Joining]])","v":2020},"5+ years"]
["Attrition",null,144158,"Kim Ramirez","2020-11-28","2023-03-31","Roberta Moyer","Permanent","Male","2021-04-10","Married","Trainees","Accounting",6,{"$f":"YEAR(Table2[[#This Row],[Date of Joining]])","v":2020},"5+ years"]
["On-Board",null,178955,"Mariana Chavez","2020-12-02",null,"Jefferson Perry","Permanent","Male","2021-03-18","Single","Trainees","Accounting",8,{"$f":"YEAR(Table2[[#This Row],[Date of Joining]])","v":2020},"5+ years"]
["Attrition",null,110616,"Tracey Burch","2020-12-21","2022-03-31","Roberta Moyer","Permanent","Male","2021-01-20","Married","Trainees","Finance",9,{"$f":"YEAR(Table2[[#This Row],[Date of Joining]])","v":2020},"5+ years"]
["Attrition",null,120981,"Gabriela Juarez","2020-12-26","2023-07-01","Roberta Moyer","Permanent","Female","2021-07-22","Single","Professional","Operations",0,{"$f":"YEAR(Table2[[#This Row],[Date of Joining]])","v":2020},"4+ years"]
["Attrition",null,140182,"Katheryn Trevino","2021-01-22","2022-03-15","Janelle Wiley","Permanent","Female","2021-02-08","Single","Professional","Operations",0,{"$f":"YEAR(Table2[[#This Row],[Date of Joining]])","v":2021},{"$f":"IF(DATEDIF(E66,TODAY(),\"Y\")>=5,\"5+ years\",\nIF(DATEDIF(E66,TODAY(),\"Y\")>=4,\"4+ years\",\nIF(DATEDIF(E66,TODAY(),\"Y\")>=3,\"3+ years\",\nIF(DATEDIF(E66,TODAY(),\"Y\")>=2,\"2+ years\",\nIF(DATEDIF(E66,TODAY(),\"Y\")>=1,\"1+ years\",\"<1 year\")))))","v":"4+ years"}]
["Attrition",null,174057,"Angelita Townsend","2021-01-22","2023-02-08","Janelle Wiley","Permanent","Male","2021-11-11","Married","Trainees","Operations",6,{"$f":"YEAR(Table2[[#This Row],[Date of Joining]])","v":2021},"4+ years"]
["Attrition",null,124194,"Damon Burgess","2021-01-29","2022-03-10","Ryan Simmons","Permanent","Male","2021-01-25","Married","Management","Accounting",13,{"$f":"YEAR(Table2[[#This Row],[Date of Joining]])","v":2021},"4+ years"]
["Attrition",null,185420,"Olen Watts","2021-02-19","2023-09-30","Darryl Leon","Permanent","Male","2021-06-24","Married","Trainees","Legal",5,{"$f":"YEAR(Table2[[#This Row],[Date of Joining]])","v":2021},"4+ years"]
["Attrition",null,184945,"Raymond Levine","2021-02-24","2022-07-06","Ryan Simmons","Permanent","Male","2021-09-27","Married","Trainees","Accounting",10,{"$f":"YEAR(Table2[[#This Row],[Date of Joining]])","v":2021},"4+ years"]
["On-Board",null,129852,"Sally Hinton","2021-03-02",null,"Janelle Wiley","Permanent","Male","2021-01-04","Single","Management","Operations",10,{"$f":"YEAR(Table2[[#This Row],[Date of Joining]])","v":2021},"4+ years"]
["Attrition",null,139272,"Katelyn Ware","2021-03-09","2023-06-30","Roberta Moyer","Permanent","Female","2021-06-16","Married","Trainees","Operations",8,{"$f":"YEAR(Table2[[#This Row],[Date of Joining]])","v":2021},"4+ years"]
["On-Board",null,194976,"Jessie Bowen","2021-03-16",null,"Janelle Wiley","Permanent","Female","2021-01-04","Single","Trainees","Operations",3.5,{"$f":"YEAR(Table2[[#This Row],[Date of Joining]])","v":2021},"4+ years"]
["On-Board",null,132557,"Mac Marquez","2021-05-27",null,"Ryan Simmons","Permanent","Female","2021-08-21","Single","Trainees","Legal",7,{"$f":"YEAR(Table2[[#This Row],[Date of Joining]])","v":2021},"4+ years"]
["Attrition","OnRoll",187280,"Spencer Webb","2021-08-10","2022-02-19","Janelle Wiley","Permanent","Female","2021-09-16","Single","Professional","Operations",0,{"$f":"YEAR(Table2[[#This Row],[Date of Joining]])","v":2021},"4+ years"]
["On-Board","OnRoll",190396,"Valentin Mcdonald","2021-08-10",null,"Janelle Wiley","Permanent","Male","2021-11-13","Single","Professional","Operations",0,{"$f":"YEAR(Table2[[#This Row],[Date of Joining]])","v":2021},"4+ years"]
["Transfer",null,161242,"Royce Schneider","2021-08-12",null,"Geneva Hardy","Permanent","Male","2021-12-26","Married","Trainees","Operations",10,{"$f":"YEAR(Table2[[#This Row],[Date of Joining]])","v":2021},"4+ years"]
["Attrition",null,156965,"Kara Mclean","2021-08-17","2022-03-16","Janelle Wiley","Permanent","Female","2021-02-20","Married","Trainees","Operations",11,{"$f":"YEAR(Table2[[#This Row],[Date of Joining]])","v":2021},"4+ years"]
["Attrition",null,192455,"Damian Mckee","2021-09-01","2021-02-06","Roberta Moyer","Permanent","Male","2021-05-22","Married","Trainees","Finance",8,{"$f":"YEAR(Table2[[#This Row],[Date of Joining]])","v":2021},"4+ years"]
["Attrition",null,174038,"Mohamed Duran","2021-09-01","2021-03-27","Janelle Wiley","Permanent","Female","2021-12-10","Married","Trainees","Accounting",12,{"$f":"YEAR(Table2[[#This Row],[Date of Joining]])","v":2021},"4+ years"]
["On-Board",null,129765,"Vera Harvey","2021-09-01",null,"Roberta Moyer","Permanent","Male","2021-01-15","Single","Trainees","Operations",5,{"$f":"YEAR(Table2[[#This Row],[Date of Joining]])","v":2021},"4+ years"]
["On-Board",null,154732,"Cristina David","2021-09-09",null,"Alejandra Mack","Permanent","Female","2021-11-07","Single","Professional","Operations",0,{"$f":"YEAR(Table2[[#This Row],[Date of Joining]])","v":2021},"4+ years"]
["On-Board",null,137413,"Florence Randall","2021-09-16",null,"Alejandra Mack","Permanent","Male","2021-01-24","Single","Management","Operations",9,{"$f":"YEAR(Table2[[#This Row],[Date of Joining]])","v":2021},"4+ years"]
["On-Board",null,185734,"Andrea Logan","2021-09-16",null,"Janelle Wiley","Permanent","Male","2021-12-06","Single","Professional","HR",0,{"$f":"YEAR(Table2[[#This Row],[Date of Joining]])","v":2021},"4+ years"]
["On-Board",null,142749,"Barrett Wallace","2021-09-30",null,"Janelle Wiley","Permanent","Male","2021-07-04","Single","Trainees","Operations",17,{"$f":"YEAR(Table2[[#This Row],[Date of Joining]])","v":2021},"4+ years"]
["Attrition",null,116657,"Claude Ramsey","2021-10-21","2022-06-28","Janelle Wiley","Permanent","Male","2021-04-14","Single","Trainees","Operations",4.5999999999999996,{"$f":"YEAR(Table2[[#This Row],[Date of Joining]])","v":2021},"4+ years"]
["On-Board",null,144530,"Mason Wells","2021-11-18",null,"Janelle Wiley","Permanent","Male","2021-03-20","Single","Trainees","Sales",14,{"$f":"YEAR(Table2[[#This Row],[Date of Joining]])","v":2021},"4+ years"]
["On-Board",null,101259,"Whitney Vance","2022-02-24",null,"Ryan Simmons","Permanent","Male","2021-11-27","Married","Management","Operations",12,{"$f":"YEAR(Table2[[#This Row],[Date of Joining]])","v":2022},"3+ years"]
["On-Board",null,122323,"Bobbie Harvey","2022-03-03",null,"Darryl Leon","Permanent","Female","2021-08-18","Married","Trainees","Sales",14,{"$f":"YEAR(Table2[[#This Row],[Date of Joining]])","v":2022},"3+ years"]
["On-Board",null,136489,"Russel Fox","2022-03-17",null,"Janelle Wiley","Permanent","Male","2021-02-03","Married","Trainees","Sales",5.3,{"$f":"YEAR(Table2[[#This Row],[Date of Joining]])","v":2022},"3+ years"]
["On-Board",null,107161,"Benita Holland","2022-03-24",null,"Roberta Moyer","Permanent","Female","2021-07-25","Single","Professional","Sales",2.5,{"$f":"YEAR(Table2[[#This Row],[Date of Joining]])","v":2022},"3+ years"]
["On-Board",null,182061,"Cory Leblanc","2022-03-24",null,"Janelle Wiley","Permanent","Male","2021-05-06","Single","Trainees","Sales",2.11,{"$f":"YEAR(Table2[[#This Row],[Date of Joining]])","v":2022},"3+ years"]
["On-Board",null,123190,"Isaiah George","2022-04-07",null,"Janelle Wiley","Permanent","Female","2021-01-18","Single","Professional","Sales",0,{"$f":"YEAR(Table2[[#This Row],[Date of Joining]])","v":2022},"3+ years"]
["On-Board",null,118638,"Brad Nichols","2022-04-07",null,"Janelle Wiley","Permanent","Male","2021-11-24","Married","Trainees","Sales",15,{"$f":"YEAR(Table2[[#This Row],[Date of Joining]])","v":2022},"3+ years"]
["On-Board",null,132330,"Quentin Mcdonald","2022-04-14",null,"Geneva Hardy","Permanent","Male","2021-10-14","Married","Management","HR",14,{"$f":"YEAR(Table2[[#This Row],[Date of Joining]])","v":2022},"3+ years"]
["On-Board",null,191594,"Johnie Pruitt","2022-04-19",null,"Darryl Leon","Permanent","Male","2021-09-07","Married","Trainees","Operations",8,{"$f":"YEAR(Table2[[#This Row],[Date of Joining]])","v":2022},"3+ years"]
["Transfer",null,152991,"Walker Whitney","2022-05-05",null,"Ryan Simmons","Permanent","Male","2021-02-18","Married","Trainees","Operations",15,{"$f":"YEAR(Table2[[#This Row],[Date of Joining]])","v":2022},"3+ years"]
["Attrition","OnRoll",101996,"Alexander Fowler","2022-06-30","2023-07-01","Ryan Simmons","Permanent","Male","2021-08-06","Single","Professional","Sales",1,{"$f":"YEAR(Table2[[#This Row],[Date of Joining]])","v":2022},"3+ years"]
["Attrition",null,138939,"Susanna Humphrey","2022-07-07","2023-05-08","Ryan Simmons","Permanent","Female","2021-04-03","Married","Trainees","Operations",6,{"$f":"YEAR(Table2[[#This Row],[Date of Joining]])","v":2022},"3+ years"]
["Attrition",null,198396,"Beth Lowe","2022-07-21","2024-02-02","Ryan Simmons","Permanent","Male","2021-01-12","Married","Management","Accounting",18,{"$f":"YEAR(Table2[[#This Row],[Date of Joining]])","v":2022},"3+ years"]
["On-Board",null,194143,"Casandra Aguilar","2022-07-21",null,"Janelle Wiley","Permanent","Male","2021-02-21","Married","Trainees","Sales",6.5,{"$f":"YEAR(Table2[[#This Row],[Date of Joining]])","v":2022},"3+ years"]
["Transfer",null,134729,"Lynn Andersen","2022-07-26",null,"Ryan Simmons","Permanent","Male","2021-01-10","Single","Trainees","Operations",7,{"$f":"YEAR(Table2[[#This Row],[Date of Joining]])","v":2022},"3+ years"]
["Attrition",null,186526,"Leola Vega","2022-09-01","2023-12-09","Janelle Wiley","Permanent","Female","2021-12-10","Married","Professional","Sales",1.8,{"$f":"YEAR(Table2[[#This Row],[Date of Joining]])","v":2022},"3+ years"]
["On-Board",null,115395,"Hillary Spencer","2022-09-01",null,"Janelle Wiley","Permanent","Female","2021-10-26","Single","Professional","Sales",3.5,{"$f":"YEAR(Table2[[#This Row],[Date of Joining]])","v":2022},"3+ years"]
["On-Board",null,160948,"Joesph Jones","2022-09-01",null,"Janelle Wiley","Permanent","Female","2021-10-03","Single","Professional","Sales",0,{"$f":"YEAR(Table2[[#This Row],[Date of Joining]])","v":2022},"3+ years"]
["On-Board",null,163814,"Otha May","2022-09-01",null,"Roberta Moyer","Permanent","Male","2021-01-12","Single","Professional","Sales",2,{"$f":"YEAR(Table2[[#This Row],[Date of Joining]])","v":2022},"3+ years"]
["On-Board",null,163161,"Ophelia Black","2022-09-01",null,"Janelle Wiley","Permanent","Male","2021-01-19","Married","Trainees","Sales",13,{"$f":"YEAR(Table2[[#This Row],[Date of Joining]])","v":2022},"3+ years"]
["On-Board",null,173240,"Helena Williamson","2022-09-15",null,"Roberta Moyer","Permanent","Female","2021-02-02","Married","Trainees","Sales",8.1999999999999993,{"$f":"YEAR(Table2[[#This Row],[Date of Joining]])","v":2022},"3+ years"]
["On-Board",null,109673,"Megan Kent","2022-10-06",null,"Janelle Wiley","Permanent","Male","2021-05-10","Single","Professional","Sales",7.6,{"$f":"YEAR(Table2[[#This Row],[Date of Joining]])","v":2022},"3+ years"]
["On-Board",null,138302,"Rufus Escobar","2022-10-13",null,"Janelle Wiley","Permanent","Male","2021-08-25","Single","Professional","Sales",6.2,{"$f":"YEAR(Table2[[#This Row],[Date of Joining]])","v":2022},"3+ years"]
["Transfer",null,126765,"Ericka Hurst","2022-11-03",null,"Ryan Simmons","Permanent","Male","2021-01-21","Married","Trainees","Operations",15,{"$f":"YEAR(Table2[[#This Row],[Date of Joining]])","v":2022},"3+ years"]
["Transfer",null,188099,"Johnny Cisneros","2022-12-06",null,"Ryan Simmons","Permanent","Male","2021-05-16","Married","Trainees","Operations",16,{"$f":"YEAR(Table2[[#This Row],[Date of Joining]])","v":2022},"3+ years"]
["On-Board","OnRoll",115441,"Alba Norton","2023-02-01",null,"Ryan Simmons","Permanent","Male","2021-06-30","Single","Professional","Finance",1.5,{"$f":"YEAR(Table2[[#This Row],[Date of Joining]])","v":2023},"2+ years"]
["On-Board","OnRoll",169669,"Sanford Patterson","2023-04-11",null,"Ryan Simmons","Permanent","Female","2022-03-19","Married","Trainees","Legal",6,{"$f":"YEAR(Table2[[#This Row],[Date of Joining]])","v":2023},"2+ years"]
["On-Board",null,100957,"Blanche Greer","2023-04-20",null,"Ryan Simmons","Permanent","Female","2022-03-12","Married","Trainees","Operations",8,{"$f":"YEAR(Table2[[#This Row],[Date of Joining]])","v":2023},"2+ years"]
["Transfer",null,193737,"Nita Powers","2023-05-11",null,"Ryan Simmons","Permanent","Male","2022-10-13","Married","Trainees","Operations",11.5,{"$f":"YEAR(Table2[[#This Row],[Date of Joining]])","v":2023},"2+ years"]
["On-Board",null,180698,"Francesco Blanchard","2023-05-18",null,"Ryan Simmons","Permanent","Male","2022-03-09","Single","Trainees","Operations",3.5,{"$f":"YEAR(Table2[[#This Row],[Date of Joining]])","v":2023},"2+ years"]
["Attrition",null,124433,"Elias Davis","2023-06-01","2023-07-11","Janelle Wiley","Permanent","Female","2022-11-02","Single","Professional","HR",0,{"$f":"YEAR(Table2[[#This Row],[Date of Joining]])","v":2023},"2+ years"]
["On-Board","OnRoll",151636,"Lucio Christian","2023-06-06",null,"Ryan Simmons","Permanent","Male","2021-02-28","Single","Professional","HR",1.8,{"$f":"YEAR(Table2[[#This Row],[Date of Joining]])","v":2023},"2+ years"]
["On-Board","OnRoll",173529,"Greg Schaefer","2023-06-06",null,"Ryan Simmons","Permanent","Female","2021-01-08","Single","Professional","HR",1.5,{"$f":"YEAR(Table2[[#This Row],[Date of Joining]])","v":2023},"2+ years"]
["On-Board","OnRoll",116633,"Adriana Little","2023-06-06",null,"Ryan Simmons","Permanent","Female","2021-01-22","Single","Professional","HR",0.11,{"$f":"YEAR(Table2[[#This Row],[Date of Joining]])","v":2023},"2+ years"]
["On-Board","OnRoll",160990,"Abdul Khan","2023-06-06",null,"Ryan Simmons","Permanent","Male","2022-08-31","Single","Professional","HR",0,{"$f":"YEAR(Table2[[#This Row],[Date of Joining]])","v":2023},"2+ years"]
["Attrition",null,170513,"Marissa Mckee","2023-06-08","2024-03-31","Ryan Simmons","Permanent","Female","2022-05-31","Single","Trainees","Operations",7,{"$f":"YEAR(Table2[[#This Row],[Date of Joining]])","v":2023},"2+ years"]
["On-Board",null,167822,"Ashlee Ortega","2023-06-29",null,"Ryan Simmons","Permanent","Male","2022-07-31","Married","Professional","HR",7,{"$f":"YEAR(Table2[[#This Row],[Date of Joining]])","v":2023},"2+ years"]
["On-Board",null,161037,"Edmund Lawson","2023-07-04",null,"Ryan Simmons","Permanent","Female","2022-03-09","Single","Professional","Operations",5,{"$f":"YEAR(Table2[[#This Row],[Date of Joining]])","v":2023},"2+ years"]
["On-Board",null,153255,"Linda Jacobs","2023-07-13",null,"Ryan Simmons","Permanent","Female","2022-01-29","Single","Professional","Legal",3.8,{"$f":"YEAR(Table2[[#This Row],[Date of Joining]])","v":2023},"2+ years"]
["On-Board",null,123179,"Kelley Harding","2023-07-18",null,"Ryan Simmons","Permanent","Female","2022-02-20","Single","Trainees","HR",6.5,{"$f":"YEAR(Table2[[#This Row],[Date of Joining]])","v":2023},"2+ years"]
["On-Board",null,189554,"Rose Carney","2023-07-27",null,"Ryan Simmons","Permanent","Female","2022-07-24","Married","Trainees","HR",8,{"$f":"YEAR(Table2[[#This Row],[Date of Joining]])","v":2023},"2+ years"]
["On-Board",null,186786,"Emery Goodwin","2023-08-01",null,"Roberta Moyer","Permanent","Female","2022-09-15","Single","Professional","Sales",1.5,{"$f":"YEAR(Table2[[#This Row],[Date of Joining]])","v":2023},"2+ years"]
["On-Board",null,186818,"Derick Singh","2023-08-03",null,"Roberta Moyer","Permanent","Male","2022-05-15","Single","Trainees","Sales",7,{"$f":"YEAR(Table2[[#This Row],[Date of Joining]])","v":2023},{"$f":"IF(DATEDIF(E130,TODAY(),\"Y\")>=5,\"5+ years\",\nIF(DATEDIF(E130,TODAY(),\"Y\")>=4,\"4+ years\",\nIF(DATEDIF(E130,TODAY(),\"Y\")>=3,\"3+ years\",\nIF(DATEDIF(E130,TODAY(),\"Y\")>=2,\"2+ years\",\nIF(DATEDIF(E130,TODAY(),\"Y\")>=1,\"1+ years\",\"<1 year\")))))","v":"2+ years"}]
["On-Board",null,147963,"Hassan Wilcox","2023-08-16",null,"Ryan Simmons","Permanent","Female","2022-02-28","Married","Trainees","Operations",15,{"$f":"YEAR(Table2[[#This Row],[Date of Joining]])","v":2023},"2+ years"]
["On-Board",null,150614,"Natalie Serrano","2023-09-12",null,"Ryan Simmons","Permanent","Male","2022-09-26","Married","Trainees","Finance",10.7,{"$f":"YEAR(Table2[[#This Row],[Date of Joining]])","v":2023},"2+ years"]
["On-Board",null,137151,"Sandy Singleton","2023-09-26",null,"Janelle Wiley","Permanent","Female","2022-12-22","Single","Professional","Sales",2,{"$f":"YEAR(Table2[[#This Row],[Date of Joining]])","v":2023},"2+ years"]
["On-Board","OnRoll",173998,"Josiah Hart","2023-10-28",null,"Ryan Simmons","Permanent","Male","2021-03-16","Single","Trainees","Accounting",5.3,{"$f":"YEAR(Table2[[#This Row],[Date of Joining]])","v":2023},"2+ years"]
["On-Board","OnRoll",103925,"Wayne Hartman","2023-11-30",null,"Ryan Simmons","Permanent","Male","2021-05-12","Married","Professional","Marketing",4.5,{"$f":"YEAR(Table2[[#This Row],[Date of Joining]])","v":2023},"2+ years"]
["On-Board",null,118694,"Sallie Carpenter","2023-12-05",null,"Ryan Simmons","Permanent","Male","2022-01-20","Single","Professional","Marketing",3.5,{"$f":"YEAR(Table2[[#This Row],[Date of Joining]])","v":2023},"2+ years"]
["On-Board",null,195849,"Allen Walters","2023-12-05",null,"Ryan Simmons","Permanent","Female","2022-08-13","Single","Professional","Marketing",1.5,{"$f":"YEAR(Table2[[#This Row],[Date of Joining]])","v":2023},"2+ years"]
["On-Board",null,182665,"Flora Bass","2023-12-07",null,"Ryan Simmons","Permanent","Female","2022-03-02","Married","Trainees","Legal",10.9,{"$f":"YEAR(Table2[[#This Row],[Date of Joining]])","v":2023},"2+ years"]
["On-Board",null,151067,"Geneva Hardy","2023-12-12",null,"Darryl Leon","Permanent","Female","2022-07-22","Married","Professional","HR",2.8,{"$f":"YEAR(Table2[[#This Row],[Date of Joining]])","v":2023},"2+ years"]
["On-Board","OnRoll",188212,"Roberto Harper","2023-12-14",null,"Ryan Simmons","Permanent","Male","2021-12-12","Married","Trainees","Legal",7.5,{"$f":"YEAR(Table2[[#This Row],[Date of Joining]])","v":2023},"2+ years"]
["On-Board","OnRoll",188527,"Isabella Miles","2023-12-14",null,"Ryan Simmons","Permanent","Female","2022-05-20","Single","Professional","Marketing",10,{"$f":"YEAR(Table2[[#This Row],[Date of Joining]])","v":2023},"2+ years"]
["On-Board",null,151539,"Consuelo Beck","2023-12-19",null,"Ryan Simmons","Permanent","Female","2022-02-21","Single","Professional","Marketing",0,{"$f":"YEAR(Table2[[#This Row],[Date of Joining]])","v":2023},"2+ years"]
["On-Board",null,148895,"Barney Velasquez","2023-12-28",null,"Darryl Leon","Permanent","Female","2022-04-17","Single","Professional","HR",0,{"$f":"YEAR(Table2[[#This Row],[Date of Joining]])","v":2023},"1+ years"]
["On-Board","OnRoll",114477,"Jamaal Delgado","2024-01-04",null,"Ryan Simmons","Permanent","Male","2021-07-09","Single","Professional","Marketing",1.6,{"$f":"YEAR(Table2[[#This Row],[Date of Joining]])","v":2024},"1+ years"]
["On-Board",null,170085,"Glenda Ayers","2024-01-11",null,"Ryan Simmons","Permanent","Male","2023-08-06","Single","Professional","Marketing",3.5,{"$f":"YEAR(Table2[[#This Row],[Date of Joining]])","v":2024},"1+ years"]
["On-Board",null,148355,"Vonda Chandler","2024-01-11",null,"Roberta Moyer","Permanent","Male","2021-08-25","Single","Professional","HR",14,{"$f":"YEAR(Table2[[#This Row],[Date of Joining]])","v":2024},"1+ years"]
["On-Board",null,132724,"Elma Perkins","2024-01-23",null,"Geneva Hardy","Permanent","Male","2023-04-05","Single","Professional","Marketing",0.6,{"$f":"YEAR(Table2[[#This Row],[Date of Joining]])","v":2024},"1+ years"]
["On-Board",null,136024,"Irving Good","2024-01-23",null,"Janelle Wiley","Permanent","Male","2021-11-24","Single","Management","HR",14,{"$f":"YEAR(Table2[[#This Row],[Date of Joining]])","v":2024},"1+ years"]
["On-Board","OnRoll",186654,"Carlo Stephens","2024-02-01",null,"Ryan Simmons","Permanent","Female","2022-05-27","Single","Professional","HR",3.3,{"$f":"YEAR(Table2[[#This Row],[Date of Joining]])","v":2024},"1+ years"]
["On-Board",null,140505,"Fermin Maddox","2024-02-01",null,"Roberta Moyer","Permanent","Female","2021-11-04","Single","Professional","HR",13,{"$f":"YEAR(Table2[[#This Row],[Date of Joining]])","v":2024},"1+ years"]
["On-Board",null,166500,"Wendell Bonilla","2024-02-06",null,"Ryan Simmons","Permanent","Female","2022-12-11","Single","Professional","Legal",1.5,{"$f":"YEAR(Table2[[#This Row],[Date of Joining]])","v":2024},"1+ years"]
["On-Board","OnRoll",196256,"Hank Copeland","2024-03-15",null,"Ryan Simmons","Permanent","Female","2021-05-03","Married","Professional","HR",3,{"$f":"YEAR(Table2[[#This Row],[Date of Joining]])","v":2024},"1+ years"]
["On-Board",null,107622,"Luciano Arnold","2024-03-15",null,"Janelle Wiley","Permanent","Female","2021-04-28","Single","Trainees","HR",13,{"$f":"YEAR(Table2[[#This Row],[Date of Joining]])","v":2024},"1+ years"]
["On-Board",null,140845,"Aimee Freeman","2024-03-23",null,"Darryl Leon","Permanent","Male","2023-06-04","Single","Trainees","HR",10,{"$f":"YEAR(Table2[[#This Row],[Date of Joining]])","v":2024},"1+ years"]
["On-Board",null,196163,"Jarrett Henson","2024-03-23",null,"Geneva Hardy","Permanent","Male","2022-12-16","Single","Professional","HR",6.8,{"$f":"YEAR(Table2[[#This Row],[Date of Joining]])","v":2024},"1+ years"]
["On-Board",null,143527,"Garland Barber","2024-03-23",null,"Roberta Moyer","Permanent","Male","2021-02-14","Married","Management","Marketing",7,{"$f":"YEAR(Table2[[#This Row],[Date of Joining]])","v":2024},"1+ years"]
["On-Board",null,121781,"Filiberto Baird","2024-03-23",null,"Roberta Moyer","Permanent","Male","2021-03-11","Single","Management","Marketing",13,{"$f":"YEAR(Table2[[#This Row],[Date of Joining]])","v":2024},"1+ years"]
["On-Board","OnRoll",190716,"Reed Pena","2024-04-03",null,"Darryl Leon","Permanent","Female","2021-06-15","Married","Professional","Marketing",4,{"$f":"YEAR(Table2[[#This Row],[Date of Joining]])","v":2024},"1+ years"]
["On-Board",null,131453,"Cecile Garner","2024-04-03",null,"Janelle Wiley","Permanent","Male","2023-01-14","Single","Professional","Operations",8,{"$f":"YEAR(Table2[[#This Row],[Date of Joining]])","v":2024},"1+ years"]
["On-Board",null,133611,"Art Kim","2024-04-19",null,"Janelle Wiley","Permanent","Female","1999-05-20","Single","Professional","Sales",0,{"$f":"YEAR(Table2[[#This Row],[Date of Joining]])","v":2024},"1+ years"]
["On-Board",null,158773,"Grover Kramer","2024-05-15",null,"Darryl Leon","Permanent","Male","2023-05-27","Single","Professional","Marketing",3,{"$f":"YEAR(Table2[[#This Row],[Date of Joining]])","v":2024},"1+ years"]
["On-Board",null,109333,"Milan Pope","2024-05-22",null,"Ryan Simmons","Permanent","Male","2023-08-04","Married","Trainees","Legal",10,{"$f":"YEAR(Table2[[#This Row],[Date of Joining]])","v":2024},"1+ years"]
["On-Board",null,165233,"Randal Mata","2024-06-12",null,"Ryan Simmons","Permanent","Male","2023-04-06","Single","Professional","Marketing",1.2,{"$f":"YEAR(Table2[[#This Row],[Date of Joining]])","v":2024},"1+ years"]
["On-Board","OnRoll",103360,"Pete Arroyo","2024-10-04",null,"Ryan Simmons","Permanent","Female","2001-04-01","Single","Professional","HR",0.11,{"$f":"YEAR(Table2[[#This Row],[Date of Joining]])","v":2024},"1+ years"]
["On-Board",null,168841,"Jefferson Perry","2024-10-04",null,"Ryan Simmons","Permanent","Male","1982-01-03","Married","Management","Sales",19,{"$f":"YEAR(Table2[[#This Row],[Date of Joining]])","v":2024},"1+ years"]
["Attrition",null,123680,"Luna Sanders","2025-01-01",null,"Jefferson Perry","Permanent","Female","2021-01-15","Single","Professional","Operations",0,{"$f":"YEAR(Table2[[#This Row],[Date of Joining]])","v":2025},"<1 year"]
["On-Board",null,136555,"Santos Mooney","2025-01-05",null,"Jefferson Perry","Permanent","Male","2021-10-03","Married","Management","Accounting",5,{"$f":"YEAR(Table2[[#This Row],[Date of Joining]])","v":2025},"<1 year"]
["On-Board",null,109886,"Theodore Dinh","2025-01-07",null,"Jefferson Perry","Permanent","Female","2021-12-10","Married","Management","Operations",14,{"$f":"YEAR(Table2[[#This Row],[Date of Joining]])","v":2025},"<1 year"]
["On-Board",null,135596,"Austin Vo","2025-01-14",null,"Darryl Leon","Permanent","Male","2021-03-14","Single","Trainees","Operations",0,{"$f":"YEAR(Table2[[#This Row],[Date of Joining]])","v":2025},"<1 year"]
["On-Board",null,102045,"Jermaine Benitez","2025-03-04",null,"Ryan Simmons","Permanent","Female","2021-01-20","Single","Management","Accounting",17,{"$f":"YEAR(Table2[[#This Row],[Date of Joining]])","v":2025},"<1 year"]
["On-Board",null,137966,"Joshua Gupta","2025-07-14",null,"Ryan Simmons","Permanent","Male","2021-11-07","Married","Trainees","Operations",9,{"$f":"YEAR(Table2[[#This Row],[Date of Joining]])","v":2025},"<1 year"]
["On-Board",null,146341,"Dave Armstrong","2025-07-19",null,"Ryan Simmons","Permanent","Female","2021-01-24","Married","Trainees","Operations",13,{"$f":"YEAR(Table2[[#This Row],[Date of Joining]])","v":2025},"<1 year"]